Workbook

Sheet Sheet1
E1: Total Number of Applications | L1: Number of places offered on National Offer Day 2022
A2: Primary School | B2: URN & DFE Numbers | C2: Published Admission Number | D2: Oversubscribed on National Offer Day 2022 | E2: First preference | F2: Second preference | G2: Third preference | H2: Fourth preference | I2: Fifth preference | J2: Sixth preference | K2: Total preferences | L2: First preference | M2: Second preference | N2: Third preference | O2: Fourth preference | P2: Fifth preference | Q2: Sixth preference | R2: Total preferences | S2: Total with SEND and LA Allocations* | T2: Criteria of last place offered | U2: Last distance offered in metres, using a straight line
A3: Planning Area 1
A4: Alexander McLeod | B4: 131841 & 203/2922 | C4: 90 | D4: No | E4: 61 | F4: 23 | G4: 12 | H4: 27 | I4: 6 | J4: 8 | K4: =SUM(E4:J4) -> 137 | L4: 61 | M4: 1 | N4: 0 | O4: 0 | P4: 0 | Q4: 0 | R4: =SUM(L4:Q4) -> 62 | S4: 62 | T4: Distance | U4: 9768.9
A5: Bannockburn | B5: 100113 & 203/2028 | C5: 120 | D5: No | E5: 112 | F5: 53 | G5: 38 | H5: 19 | I5: 29 | J5: 13 | K5: 264 | L5: 112 | M5: 1 | N5: 1 | O5: 0 | P5: 2 | Q5: 0 | R5: 116 | S5: 116 | T5: Distance | U5: 5779.13
A6: Bishop John Robinson CE | B6: 100181 & 203/3668 | C6: 30 | D6: No | E6: 19 | F6: 11 | G6: 14 | H6: 9 | I6: 4 | J6: 3 | K6: 60 | L6: 19 | M6: 2 | N6: 0 | O6: 0 | P6: 0 | Q6: 0 | R6: 21 | S6: 21 | T6: Faith School | U6: 1187.980 (Open Band)
A7: Boxgrove | B7: 100150 & 203/2801 | C7: 60 | D7: No | E7: 58 | F7: 33 | G7: 24 | H7: 13 | I7: 11 | J7: 3 | K7: 142 | L7: 58 | M7: 0 | N7: 0 | O7: 0 | P7: 0 | Q7: 0 | R7: 58 | S7: 58 | T7: Distance | U7: 4876.4
A8: Conway | B8: 132800 & 203/2924 | C8: 60 | D8: No | E8: 45 | F8: 34 | G8: 23 | H8: 14 | I8: 8 | J8: 14 | K8: 138 | L8: 45 | M8: 2 | N8: 1 | O8: 0 | P8: 0 | Q8: 0 | R8: 48 | S8: 48 | T8: Distance | U8: 6056.23
A9: De Lucy | B9: 100152 & 203/2813 | C9: 60 | D9: No | E9: 29 | F9: 18 | G9: 8 | H9: 11 | I9: 7 | J9: 3 | K9: 76 | L9: 29 | M9: 0 | N9: 0 | O9: 0 | P9: 0 | Q9: 0 | R9: 29 | S9: 29 | T9: Distance | U9: 892.57
A10: Discovery | B10: 131109 & 203/3670 | C10: 90 | D10: No | E10: 71 | F10: 38 | G10: 16 | H10: 19 | I10: 9 | J10: 9 | K10: 162 | L10: 71 | M10: 3 | N10: 1 | O10: 0 | P10: 0 | Q10: 0 | R10: 75 | S10: 76 | T10: Distance | U10: 5826.49
A11: Gallions Mount | B11: 100126 & 203/2242 | C11: 30 | D11: No | E11: 26 | F11: 24 | G11: 17 | H11: 12 | I11: 10 | J11: 6 | K11: 95 | L11: 26 | M11: 0 | N11: 0 | O11: 0 | P11: 0 | Q11: 0 | R11: 26 | S11: 27 | T11: Distance | U11: 625.82
A12: Hawksmoor | B12: 100197 & 203/5200 | C12: 60 | D12: No | E12: 26 | F12: 27 | G12: 29 | H12: 13 | I12: 10 | J12: 4 | K12: 109 | L12: 26 | M12: 8 | N12: 0 | O12: 0 | P12: 0 | Q12: 0 | R12: 34 | S12: 35 | T12: Distance | U12: 1746.82
A13: Linton Mead | B13: 100159 & 203/2901 | C13: 60 | D13: No | E13: 22 | F13: 13 | G13: 29 | H13: 10 | I13: 8 | J13: 2 | K13: 84 | L13: 22 | M13: 2 | N13: 0 | O13: 0 | P13: 0 | Q13: 0 | R13: 24 | S13: 24 | T13: Distance | U13: 1535.81
A14: South Rise | B14: 143596 & 203/2920 | C14: 90 | D14: No | E14: 52 | F14: 19 | G14: 22 | H14: 13 | I14: 13 | J14: 11 | K14: 130 | L14: 52 | M14: 2 | N14: 1 | O14: 1 | P14: 0 | Q14: 0 | R14: 56 | S14: 56 | T14: Distance | U14: 6656.62
A15: St Margaret Clitherow RC | B15: 100180 & 203/3666 | C15: 30 | D15: No | E15: 25 | F15: 13 | G15: 6 | H15: 4 | I15: 8 | J15: 6 | K15: 62 | L15: 25 | M15: 0 | N15: 0 | O15: 0 | P15: 0 | Q15: 0 | R15: 25 | S15: 25 | T15: Faith School | U15: Faith School
A16: St Patrick's RC | B16: 100173 & 203/3561 | C16: 45 | D16: No | E16: 34 | F16: 12 | G16: 15 | H16: 11 | I16: 8 | J16: 2 | K16: 82 | L16: 34 | M16: 2 | N16: 1 | O16: 0 | P16: 0 | Q16: 0 | R16: 37 | S16: 37 | T16: Faith School | U16: Faith School
A17: St Thomas a Becket RC | B17: 100177 & 203/3632 | C17: 60 | D17: No | E17: 43 | F17: 15 | G17: 12 | H17: 9 | I17: 7 | J17: 3 | K17: 89 | L17: 43 | M17: 1 | N17: 0 | O17: 0 | P17: 0 | Q17: 0 | R17: 44 | S17: 44 | T17: Faith School | U17: Faith School
A18: Windrush Thamesmead | B18: 143079 & 203/2890 | C18: 30 | D18: Yes | E18: 50 | F18: 37 | G18: 9 | H18: 16 | I18: 8 | J18: 7 | K18: 127 | L18: 30 | M18: 0 | N18: 0 | O18: 0 | P18: 0 | Q18: 0 | R18: 30 | S18: 30 | T18: Distance | U18: 475.28
A20: Planning Area 2
A21: Christ Church Blackwall CE | B21: 100165 & 203/3322 | C21: 30 | D21: Yes | E21: 30 | F21: 22 | G21: 23 | H21: 19 | I21: 9 | J21: 11 | K21: =SUM(E21:J21) -> 114 | L21: 25 | M21: 3 | N21: 1 | O21: 1 | P21: 0 | Q21: 0 | R21: =SUM(L21:Q21) -> 30 | S21: 30 | T21: Faith School | U21: 321.170 (Open Band)
A22: Halstow | B22: 143597 & 203/2275 | C22: 60 | D22: Yes | E22: 104 | F22: 67 | G22: 51 | H22: 35 | I22: 19 | J22: 15 | K22: 291 | L22: 60 | M22: 0 | N22: 0 | O22: 0 | P22: 0 | Q22: 0 | R22: 60 | S22: 60 | T22: Distance | U22: 410.03
A23: Invicta Blackheath | B23: 100134 & 203/2325 | C23: 60 | D23: No | E23: 52 | F23: 75 | G23: 69 | H23: 21 | I23: 25 | J23: 18 | K23: 260 | L23: 49 | M23: 9 | N23: 2 | O23: 0 | P23: 0 | Q23: 0 | R23: 60 | S23: 60 | T23: Distance | U23: 1060.4
A24: Invicta Deptford | B24: 203/9903 | C24: 60 | D24: Yes | E24: 59 | F24: 28 | G24: 27 | H24: 19 | I24: 10 | J24: 7 | K24: 150 | L24: 56 | M24: 4 | N24: 0 | O24: 0 | P24: 0 | Q24: 0 | R24: 60 | S24: 60 | T24: Distance | U24: 1141.76
A25: James Wolfe | B25: 131246 & 203/2921 | C25: 120 | D25: Yes | E25: 91 | F25: 58 | G25: 39 | H25: 39 | I25: 20 | J25: 12 | K25: 259 | L25: 91 | M25: 8 | N25: 5 | O25: 1 | P25: 0 | Q25: 0 | R25: 105 | S25: 106 | T25: Distance | U25: 5221.42
A26: Meridian | B26: 100137 & 203/2410 | C26: 30 | D26: Yes | E26: 35 | F26: 48 | G26: 40 | H26: 26 | I26: 23 | J26: 10 | K26: 182 | L26: 26 | M26: 3 | N26: 1 | O26: 0 | P26: 0 | Q26: 0 | R26: 30 | S26: 30 | T26: Distance | U26: 697.6
A27: Morden Mount | B27: 100114 & 203/2071 | C27: 60 | D27: No | E27: 34 | F27: 13 | G27: 9 | H27: 10 | I27: 5 | J27: 6 | K27: 77 | L27: 34 | M27: 2 | N27: 0 | O27: 0 | P27: 0 | Q27: 0 | R27: 36 | S27: 37 | T27: Distance | U27: 2511.2
A28: St Alfege with St Peter's CE | B28: 100174 & 203/3577 | C28: 30 | D28: No | E28: 24 | F28: 19 | G28: 11 | H28: 13 | I28: 17 | J28: 10 | K28: 94 | L28: 24 | M28: 1 | N28: 0 | O28: 0 | P28: 0 | Q28: 0 | R28: 25 | S28: 27 | T28: Faith School | U28: Faith School
A29: St Joseph's RC | B29: 100169 & 203/3481 | C29: 30 | D29: Yes | E29: 22 | F29: 16 | G29: 22 | H29: 11 | I29: 15 | J29: 8 | K29: 94 | L29: 22 | M29: 6 | N29: 2 | O29: 0 | P29: 0 | Q29: 0 | R29: 30 | S29: 30 | T29: Faith School | U29: Faith School
A31: Planning Area 3
A32: Cardwell | B32: 100155 & 203/2877 | C32: 60 | D32: Yes | E32: 63 | F32: 43 | G32: 24 | H32: 21 | I32: 5 | J32: 12 | K32: =SUM(E32:J32) -> 168 | L32: 58 | M32: 2 | N32: 0 | O32: 0 | P32: 0 | Q32: 0 | R32: =SUM(L32:Q32) -> 60 | S32: 60 | T32: Distance | U32: 576.42
A33: Charlton Manor | B33: 100164 & 203/2917 | C33: 60 | D33: No | E33: 41 | F33: 40 | G33: 20 | H33: 20 | I33: 17 | J33: 12 | K33: 150 | L33: 41 | M33: 4 | N33: 1 | O33: 0 | P33: 0 | Q33: 0 | R33: 46 | S33: 50 | T33: Distance | U33: 2870.99
A34: Cherry Orchard | B34: 100115 & 203/2106 | C34: 30 | D34: No | E34: 26 | F34: 25 | G34: 20 | H34: 17 | I34: 19 | J34: 16 | K34: 123 | L34: 26 | M34: 1 | N34: 1 | O34: 0 | P34: 0 | Q34: 0 | R34: 28 | S34: 28 | T34: Distance | U34: 4594.58
A35: Fossdene | B35: 100125 & 203/2228 | C35: 60 | D35: No | E35: 25 | F35: 21 | G35: 20 | H35: 24 | I35: 22 | J35: 16 | K35: 128 | L35: 25 | M35: 6 | N35: 2 | O35: 2 | P35: 0 | Q35: 0 | R35: 35 | S35: 38 | T35: Distance | U35: 2851.55
A36: Millennium | B36: 143211 & 203/2018 | C36: 60 | D36: Yes | E36: 62 | F36: 36 | G36: 31 | H36: 22 | I36: 23 | J36: 16 | K36: 190 | L36: 55 | M36: 3 | N36: 0 | O36: 0 | P36: 2 | Q36: 0 | R36: 60 | S36: 60 | T36: Distance | U36: 993.31
A37: Mulgrave | B37: 100163 & 203/2916 | C37: 60 | D37: No | E37: 35 | F37: 26 | G37: 30 | H37: 24 | I37: 13 | J37: 4 | K37: 132 | L37: 35 | M37: 2 | N37: 1 | O37: 0 | P37: 0 | Q37: 0 | R37: 38 | S37: 38 | T37: Distance | U37: 2700.62
A38: Our Lady of Grace RC | B38: 100168 & 203/3382 | C38: 60 | D38: Yes | E38: 77 | F38: 41 | G38: 28 | H38: 18 | I38: 10 | J38: 9 | K38: 183 | L38: 57 | M38: 2 | N38: 0 | O38: 0 | P38: 0 | Q38: 0 | R38: 59 | S38: 60 | T38: Faith School | U38: Faith School
A39: Sherington | B39: 100141 & 203/2552 | C39: 60 | D39: Yes | E39: 74 | F39: 91 | G39: 60 | H39: 31 | I39: 15 | J39: 11 | K39: 282 | L39: 55 | M39: 3 | N39: 1 | O39: 0 | P39: 0 | Q39: 0 | R39: 59 | S39: 60 | T39: Distance | U39: 611.9
A40: St Mary Magdalene Woolwich CE | B40: 100171 & 203/3526 | C40: 60 | D40: No | E40: 33 | F40: 17 | G40: 15 | H40: 13 | I40: 7 | J40: 7 | K40: 92 | L40: 33 | M40: 1 | N40: 0 | O40: 0 | P40: 0 | Q40: 1 | R40: 35 | S40: 37 | T40: Faith School | U40: 2191.260 (Open Band)
A41: St Mary Mag (Peninsula) CE | B41: 203/9902 | C41: 60 | D41: No | E41: 47 | F41: 23 | G41: 17 | H41: 6 | I41: 8 | J41: 9 | K41: 110 | L41: 47 | M41: 2 | N41: 1 | O41: 0 | P41: 0 | Q41: 0 | R41: 50 | S41: 54 | T41: Faith School | U41: 2942.630 (Open Band)
A42: Thorntree | B42: 100142 & 203/2598 | C42: 30 | D42: Yes | E42: 32 | F42: 15 | G42: 20 | H42: 16 | I42: 13 | J42: 7 | K42: 103 | L42: 29 | M42: 0 | N42: 0 | O42: 0 | P42: 0 | Q42: 0 | R42: 29 | S42: 30 | T42: Distance | U42: 1014.5
A43: Windrush Charlton | B43: 203/9901 | C43: 90 | D43: No | E43: 70 | F43: 32 | G43: 23 | H43: 23 | I43: 13 | J43: 12 | K43: 173 | L43: 70 | M43: 5 | N43: 4 | O43: 1 | P43: 0 | Q43: 0 | R43: 80 | S43: 80 | T43: Distance | U43: 5212.46
A44: Woodhill | B44: 143594 & 203/2656 | C44: 60 | D44: No | E44: 48 | F44: 18 | G44: 14 | H44: 16 | I44: 9 | J44: 4 | K44: 109 | L44: 48 | M44: 5 | N44: 1 | O44: 0 | P44: 0 | Q44: 0 | R44: 54 | S44: 55 | T44: Distance | U44: 4178.06
A46: Planning Area 4
A47: Brooklands | B47: 143210 & 203/2790 | C47: 30 | D47: No | E47: 23 | F47: 41 | G47: 19 | H47: 20 | I47: 16 | J47: 13 | K47: =SUM(E47:J47) -> 132 | L47: 23 | M47: 3 | N47: 2 | O47: 1 | P47: 0 | Q47: 0 | R47: =SUM(L47:Q47) -> 29 | S47: 29 | T47: Distance | U47: 5061.44
A48: Ealdham | B48: 100120 & 203/2174 | C48: 60 | D48: No | E48: 39 | F48: 14 | G48: 16 | H48: 5 | I48: 9 | J48: 4 | K48: 87 | L48: 39 | M48: 0 | N48: 1 | O48: 0 | P48: 0 | Q48: 0 | R48: 40 | S48: 41 | T48: Distance | U48: 10218.15
A49: Haimo | B49: 100129 & 203/2271 | C49: 60 | D49: No | E49: 41 | F49: 22 | G49: 24 | H49: 17 | I49: 14 | J49: 10 | K49: 128 | L49: 41 | M49: 3 | N49: 0 | O49: 1 | P49: 0 | Q49: 0 | R49: 45 | S49: 46 | T49: Distance | U49: 23627.28
A50: Henwick | B50: 100131 & 203/2299 | C50: 60 | D50: No | E50: 36 | F50: 18 | G50: 14 | H50: 18 | I50: 11 | J50: 5 | K50: 102 | L50: 36 | M50: 3 | N50: 0 | O50: 0 | P50: 0 | Q50: 0 | R50: 39 | S50: 39 | T50: Distance | U50: 4012.12
A51: Holy Family RC | B51: 100178 & 203/3657 | C51: 30 | D51: No | E51: 11 | F51: 8 | G51: 4 | H51: 3 | I51: 3 | J51: 5 | K51: 34 | L51: 11 | M51: 2 | N51: 0 | O51: 0 | P51: 0 | Q51: 0 | R51: 13 | S51: 14 | T51: Faith School | U51: Faith School
A52: Horn Park | B52: 143598 & 203/2313 | C52: 60 | D52: No | E52: 27 | F52: 18 | G52: 9 | H52: 8 | I52: 12 | J52: 3 | K52: 77 | L52: 27 | M52: 5 | N52: 1 | O52: 1 | P52: 0 | Q52: 0 | R52: 34 | S52: 35 | T52: Distance | U52: 1936.97
A53: Kidbrooke Park | B53: 100136 & 203/2353 | C53: 60 | D53: No | E53: 49 | F53: 10 | G53: 18 | H53: 9 | I53: 9 | J53: 7 | K53: 102 | L53: 49 | M53: 3 | N53: 0 | O53: 0 | P53: 0 | Q53: 0 | R53: 52 | S53: 52 | T53: Distance | U53: 13456.33
A54: Middle Park | B54: 130921 & 203/2918 | C54: 60 | D54: No | E54: 44 | F54: 10 | G54: 13 | H54: 8 | I54: 10 | J54: 6 | K54: 91 | L54: 44 | M54: 2 | N54: 2 | O54: 0 | P54: 0 | Q54: 0 | R54: 48 | S54: 48 | T54: Distance | U54: 3415.06
A55: St Thomas More Primary RC | B55: 141716 & 203/4716 | C55: 30 | D55: No | E55: 21 | F55: 13 | G55: 18 | H55: 10 | I55: 10 | J55: 6 | K55: 78 | L55: 21 | M55: 1 | N55: 0 | O55: 0 | P55: 0 | Q55: 0 | R55: 22 | S55: 23 | T55: Faith School | U55: Faith School
A56: Wingfield | B56: 100154 & 203/2851 | C56: 90 | D56: No | E56: 79 | F56: 34 | G56: 18 | H56: 15 | I56: 11 | J56: 5 | K56: 162 | L56: 79 | M56: 8 | N56: 2 | O56: 0 | P56: 0 | Q56: 0 | R56: 89 | S56: 89 | T56: Distance | U56: 2904.18
A58: Planning Area 5
A59: Alderwood | B59: 143601 & 203/2024 | C59: 30 | D59: No | E59: 21 | F59: 6 | G59: 11 | H59: 4 | I59: 9 | J59: 4 | K59: 55 | L59: 21 | M59: 1 | N59: 0 | O59: 2 | P59: 0 | Q59: 0 | R59: 24 | S59: 28 | T59: Distance | U59: 8701.05
A60: Deansfield | B60: 143599 & 203/2923 | C60: 60 | D60: Yes | E60: 87 | F60: 67 | G60: 37 | H60: 27 | I60: 7 | J60: 2 | K60: =SUM(E60:J60) -> 227 | L60: 59 | M60: 1 | N60: 0 | O60: 0 | P60: 0 | Q60: 0 | R60: =SUM(L60:Q60) -> 60 | S60: 60 | T60: Distance | U60: 458.77
A61: Eltham CE | B61: 100167 & 203/3338 | C61: 60 | D61: Yes | E61: 79 | F61: 55 | G61: 52 | H61: 28 | I61: 9 | J61: 5 | K61: =SUM(E61:J61) -> 228 | L61: 56 | M61: 4 | N61: 0 | O61: 0 | P61: 0 | Q61: 0 | R61: =SUM(L61:Q61) -> 60 | S61: 60 | T61: Faith School | U61: Faith School
A62: Gordon | B62: 100127 & 203/2258 | C62: 60 | D62: Yes | E62: 52 | F62: 68 | G62: 36 | H62: 14 | I62: 13 | J62: 6 | K62: =SUM(E62:J62) -> 189 | L62: 50 | M62: 8 | N62: 2 | O62: 0 | P62: 0 | Q62: 0 | R62: =SUM(L62:Q62) -> 60 | S62: 60 | T62: Distance | U62: 1127.17
A63: Greenacres | B63: 145210 & 203/2266 | C63: 30 | D63: No | E63: 21 | F63: 21 | G63: 15 | H63: 12 | I63: 4 | J63: 7 | K63: =SUM(E63:J63) -> 80 | L63: 21 | M63: 2 | N63: 0 | O63: 0 | P63: 1 | Q63: 0 | R63: =SUM(L63:Q63) -> 24 | S63: 25 | T63: Distance | U63: 8244.82
A64: Montbelle | B64: 100149 & 203/2798 | C64: 60 | D64: No | E64: 51 | F64: 28 | G64: 18 | H64: 20 | I64: 17 | J64: 12 | K64: =SUM(E64:J64) -> 146 | L64: 51 | M64: 3 | N64: 0 | O64: 0 | P64: 1 | Q64: 1 | R64: =SUM(L64:Q64) -> 56 | S64: 56 | T64: Distance | U64: 15773.47
A65: St Mary's RC | B65: 144091 & 203/3535 | C65: 60 | D65: Yes | E65: 73 | F65: 51 | G65: 31 | H65: 26 | I65: 13 | J65: 6 | K65: =SUM(E65:J65) -> 200 | L65: 59 | M65: 1 | N65: 0 | O65: 0 | P65: 0 | Q65: 0 | R65: =SUM(L65:Q65) -> 60 | S65: 60 | T65: Faith School | U65: Faith School
A66: Wyborne | B66: 100146 & 203/2662 | C66: 60 | D66: Yes | E66: 53 | F66: 27 | G66: 31 | H66: 16 | I66: 19 | J66: 10 | K66: =SUM(E66:J66) -> 156 | L66: 50 | M66: 4 | N66: 4 | O66: 0 | P66: 1 | Q66: 0 | R66: =SUM(L66:Q66) -> 59 | S66: 60 | T66: Distance | U66: 1349.31
A68: Planning Area 6
A69: Christ Church Shooters Hill CE | B69: 100166 & 203/3331 | C69: 30 | D69: Yes | E69: 39 | F69: 22 | G69: 16 | H69: 19 | I69: 18 | J69: 4 | K69: =SUM(E69:J69) -> 118 | L69: 30 | M69: 0 | N69: 0 | O69: 0 | P69: 0 | Q69: 0 | R69: =SUM(L69:Q69) -> 30 | S69: 30 | T69: Faith School | U69: 766.190 (Open Band)
A70: Eglinton | B70: 132827 & 203/2925 | C70: 60 | D70: No | E70: 48 | F70: 18 | G70: 22 | H70: 14 | I70: 6 | J70: 9 | K70: 117 | L70: 48 | M70: 1 | N70: 1 | O70: 0 | P70: 0 | Q70: 0 | R70: 50 | S70: 50 | T70: Distance | U70: 2269.37
A71: Foxfield | B71: 143592 & 203/2885 | C71: 90 | D71: Yes | E71: 130 | F71: 105 | G71: 69 | H71: 47 | I71: 29 | J71: 16 | K71: 396 | L71: 88 | M71: 2 | N71: 0 | O71: 0 | P71: 0 | Q71: 0 | R71: 90 | S71: 90 | T71: Distance | U71: 601.8
A72: Greenslade | B72: 100162 & 203/2915 | C72: 30 | D72: Yes | E72: 34 | F72: 37 | G72: 23 | H72: 15 | I72: 18 | J72: 5 | K72: 132 | L72: 29 | M72: 0 | N72: 0 | O72: 0 | P72: 0 | Q72: 0 | R72: 29 | S72: 30 | T72: Distance | U72: 633.67
A73: Heronsgate | B73: 100158 & 203/2900 | C73: 120 | D73: No | E73: 91 | F73: 76 | G73: 41 | H73: 17 | I73: 22 | J73: 23 | K73: 270 | L73: 91 | M73: 11 | N73: 4 | O73: 0 | P73: 0 | Q73: 0 | R73: 106 | S73: 107 | T73: Distance | U73: 4259.42
A74: Nightingale | B74: 145215 & 203/2902 | C74: 30 | D74: No | E74: 23 | F74: 27 | G74: 26 | H74: 18 | I74: 4 | J74: 5 | K74: 103 | L74: 23 | M74: 4 | N74: 0 | O74: 0 | P74: 0 | Q74: 0 | R74: =SUM(L74:Q74) -> 27 | S74: 27 | T74: Distance | U74: 2827.7
A75: Notre Dame RC | B75: 100179 & 203/3662 | C75: 30 | D75: No | E75: 13 | F75: 20 | G75: 3 | H75: 7 | I75: 3 | J75: 4 | K75: 50 | L75: 13 | M75: 0 | N75: 0 | O75: 0 | P75: 0 | Q75: 0 | R75: 13 | S75: 15 | T75: Faith School | U75: Faith School
A76: Plumcroft Plum Lane | B76: 100140 & 203/2471 | C76: 90 | D76: No | E76: 82 | F76: 35 | G76: 36 | H76: 18 | I76: 7 | J76: 7 | K76: 185 | L76: 82 | M76: 6 | N76: 1 | O76: 0 | P76: 0 | Q76: 0 | R76: 89 | S76: 89 | T76: Distance | U76: 4207.98
A77: Plumcroft Vincent Road | B77: 203/9904 | C77: 60 | D77: No | E77: 46 | F77: 47 | G77: 30 | H77: 15 | I77: 8 | J77: 11 | K77: 157 | L77: 46 | M77: 9 | N77: 1 | O77: 0 | P77: 0 | Q77: 1 | R77: 57 | S77: 58 | T77: Distance | U77: 3602.24
A78: Rockliffe Manor | B78: 143593 & 203/2804 | C78: 30 | D78: No | E78: 22 | F78: 11 | G78: 11 | H78: 17 | I78: 6 | J78: 4 | K78: 71 | L78: 22 | M78: 1 | N78: 0 | O78: 0 | P78: 0 | Q78: 0 | R78: 23 | S78: 24 | T78: Distance | U78: 1501.42
A79: St Margaret's CE | B79: 100170 & 203/3500 | C79: 60 | D79: No | E79: 28 | F79: 10 | G79: 14 | H79: 19 | I79: 13 | J79: 10 | K79: 94 | L79: 28 | M79: 1 | N79: 0 | O79: 0 | P79: 0 | Q79: 0 | R79: 29 | S79: 29 | T79: Faith School | U79: Faith School
A80: St Peter's RC | B80: 100175 & 203/3585 | C80: 30 | D80: Yes | E80: 33 | F80: 38 | G80: 22 | H80: 9 | I80: 19 | J80: 9 | K80: 130 | L80: 29 | M80: 0 | N80: 1 | O80: 0 | P80: 0 | Q80: 0 | R80: 30 | S80: 30 | T80: Faith School | U80: Faith School
A81: Timbercroft | B81: 143209 & 203/2919 | C81: 60 | D81: No | E81: 46 | F81: 25 | G81: 16 | H81: 12 | I81: 7 | J81: 8 | K81: 114 | L81: 46 | M81: 1 | N81: 1 | O81: 0 | P81: 0 | Q81: 0 | R81: 48 | S81: 48 | T81: Distance | U81: 6460.23
